[Event "*** Titled Tuesday Blitz"]
[Site "Chess.com"]
[Date "2020.11.03"]
[Round "4"]
[White "Region_07"]
[Black "cassoulet"]
[Result "1/2-1/2"]
[WhiteElo "2458"]
[BlackElo "2611"]
[TimeControl "180+1"]
[EndTime "10:41:27 PST"]
[Termination "Game drawn - insufficient material"]

1. d4 {[%clk 0:03:00.2]} 1... Nf6 {[%clk 0:02:59]} 2. Bg5 {[%clk 0:02:59.9]}
2... d6 {[%clk 0:02:54.7]} 3. Nc3 {[%clk 0:02:52.7]} 3... Nbd7 {[%clk
0:02:53.4]} 4. e4 {[%clk 0:02:49.9]} 4... h6 {[%clk 0:02:53.7]} 5. Be3 {[%clk
0:02:46.9]} 5... e5 {[%clk 0:02:52.3]} 6. h3 {[%clk 0:02:34.9]} 6... Be7 {[%clk
0:02:49.3]} 7. g3 {[%clk 0:02:34.6]} 7... O-O {[%clk 0:02:48.3]} 8. Bg2 {[%clk
0:02:34.6]} 8... c6 {[%clk 0:02:47.1]} 9. a4 {[%clk 0:02:30.7]} 9... Re8 {[%clk
0:02:46.5]} 10. Nge2 {[%clk 0:02:26.6]} 10... exd4 {[%clk 0:02:45.1]} 11. Nxd4
{[%clk 0:02:25.8]} 11... Bf8 {[%clk 0:02:45.3]} 12. O-O {[%clk 0:02:25.4]} 12...
Nc5 {[%clk 0:02:44.6]} 13. f3 {[%clk 0:02:04.2]} 13... d5 {[%clk 0:02:43.2]} 14.
Qd2 {[%clk 0:01:32.3]} 14... dxe4 {[%clk 0:02:41.9]} 15. f4 {[%clk 0:01:22.9]}
15... Nd5 {[%clk 0:02:33.4]} 16. Nxd5 {[%clk 0:01:14.3]} 16... Qxd5 {[%clk
0:02:34.3]} 17. Qc3 {[%clk 0:00:53.8]} 17... Ne6 {[%clk 0:02:25.2]} 18. Rad1
{[%clk 0:00:50.4]} 18... Nxd4 {[%clk 0:02:22.3]} 19. Rxd4 {[%clk 0:00:50.8]}
19... Qf5 {[%clk 0:02:13.7]} 20. g4 {[%clk 0:00:49.3]} 20... Qg6 {[%clk
0:02:06.7]} 21. f5 {[%clk 0:00:48.3]} 21... Qf6 {[%clk 0:02:07]} 22. Rxe4 {[%clk
0:00:29.3]} 22... Qxc3 {[%clk 0:02:06.9]} 23. bxc3 {[%clk 0:00:24.7]} 23... Rxe4
{[%clk 0:02:07.1]} 24. Bxe4 {[%clk 0:00:25.3]} 24... Bd7 {[%clk 0:02:08]} 25.
Kf2 {[%clk 0:00:20.4]} 25... Re8 {[%clk 0:02:07.6]} 26. Kf3 {[%clk 0:00:20.9]}
26... c5 {[%clk 0:02:03.9]} 27. Bxb7 {[%clk 0:00:17.7]} 27... Bxa4 {[%clk
0:02:03.9]} 28. Ra1 {[%clk 0:00:17.8]} 28... Bxc2 {[%clk 0:02:03.5]} 29. Rxa7
{[%clk 0:00:17.1]} 29... Bd1+ {[%clk 0:01:58.7]} 30. Kf2 {[%clk 0:00:16.9]}
30... Be7 {[%clk 0:01:58.4]} 31. Ra8 {[%clk 0:00:15.9]} 31... Bh4+ {[%clk
0:01:57.7]} 32. Kf1 {[%clk 0:00:15.7]} 32... Rxa8 {[%clk 0:01:55.4]} 33. Bxa8
{[%clk 0:00:16.6]} 33... c4 {[%clk 0:01:55.1]} 34. Bd5 {[%clk 0:00:15.6]} 34...
Bb3 {[%clk 0:01:55.2]} 35. Bd4 {[%clk 0:00:15.4]} 35... Kf8 {[%clk 0:01:51.9]}
36. Kg2 {[%clk 0:00:15.3]} 36... Be7 {[%clk 0:01:41.2]} 37. Kf3 {[%clk
0:00:14.9]} 37... Bd6 {[%clk 0:01:41.4]} 38. h4 {[%clk 0:00:14.5]} 38... f6
{[%clk 0:01:41.4]} 39. g5 {[%clk 0:00:12.2]} 39... hxg5 {[%clk 0:01:38.1]} 40.
hxg5 {[%clk 0:00:13.1]} 40... Ke7 {[%clk 0:01:38.6]} 41. Kg4 {[%clk 0:00:11.8]}
41... Bd1+ {[%clk 0:01:37]} 42. Kh4 {[%clk 0:00:11.8]} 42... Be2 {[%clk
0:01:33.9]} 43. gxf6+ {[%clk 0:00:10.7]} 43... gxf6 {[%clk 0:01:34.8]} 44. Be6
{[%clk 0:00:09.2]} 44... Be5 {[%clk 0:01:34.3]} 45. Bxe5 {[%clk 0:00:08.4]}
45... fxe5 {[%clk 0:01:35.2]} 46. Kg5 {[%clk 0:00:08.7]} 46... e4 {[%clk
0:01:30.3]} 47. Bd5 {[%clk 0:00:08.6]} 47... e3 {[%clk 0:01:26.4]} 48. Kf4
{[%clk 0:00:08.5]} 48... Bd3 {[%clk 0:01:25.3]} 49. Kxe3 {[%clk 0:00:08.3]}
49... Bxf5 {[%clk 0:01:25.7]} 50. Bxc4 {[%clk 0:00:08.3]} 50... Kd6 {[%clk
0:01:26.6]} 51. Kd4 {[%clk 0:00:08.7]} 51... Bd7 {[%clk 0:01:25.9]} 52. Bd3
{[%clk 0:00:08.2]} 52... Be6 {[%clk 0:01:25.9]} 53. c4 {[%clk 0:00:07.5]} 53...
Bxc4 {[%clk 0:01:26.1]} 1/2-1/2

[Event "*** Titled Tuesday Blitz"]
[Site "Chess.com"]
[Date "2020.11.03"]
[Round "4"]
[White "Lady_Nika"]
[Black "Kildepiotr"]
[Result "0-1"]
[WhiteElo "2468"]
[BlackElo "2651"]
[TimeControl "180+1"]
[EndTime "10:41:33 PST"]
[Termination "Kildepiotr won by resignation"]

1. d4 {[%clk 0:03:00.9]} 1... c5 {[%clk 0:02:59.6]} 2. e3 {[%clk 0:03:01]} 2...
Nf6 {[%clk 0:02:59]} 3. Bd3 {[%clk 0:03:00]} 3... d5 {[%clk 0:02:57.8]} 4. c3
{[%clk 0:03:00.1]} 4... Nc6 {[%clk 0:02:51.3]} 5. f4 {[%clk 0:03:00]} 5... Bg4
{[%clk 0:02:49]} 6. Nf3 {[%clk 0:02:59.4]} 6... e6 {[%clk 0:02:47.7]} 7. O-O
{[%clk 0:02:59.2]} 7... Be7 {[%clk 0:02:45.8]} 8. Nbd2 {[%clk 0:02:58.9]} 8...
c4 {[%clk 0:02:42.4]} 9. Bc2 {[%clk 0:02:58.8]} 9... b5 {[%clk 0:02:41.7]} 10.
Qe1 {[%clk 0:02:58.1]} 10... Bxf3 {[%clk 0:02:40.7]} 11. Rxf3 {[%clk 0:02:57.7]}
11... Qb6 {[%clk 0:02:33.5]} 12. e4 {[%clk 0:02:53]} 12... dxe4 {[%clk
0:02:23.2]} 13. Nxe4 {[%clk 0:02:52.2]} 13... Nxe4 {[%clk 0:02:22.6]} 14. Bxe4
{[%clk 0:02:50.5]} 14... O-O-O {[%clk 0:02:20.2]} 15. Be3 {[%clk 0:02:46.9]}
15... Qc7 {[%clk 0:02:18.3]} 16. f5 {[%clk 0:02:39.2]} 16... e5 {[%clk
0:02:17.1]} 17. d5 {[%clk 0:02:35.7]} 17... Na5 {[%clk 0:02:13.5]} 18. b4 {[%clk
0:02:32.9]} 18... Nb7 {[%clk 0:02:06.8]} 19. a4 {[%clk 0:02:32.4]} 19... Nd6
{[%clk 0:02:00.5]} 20. Bc2 {[%clk 0:02:31.7]} 20... e4 {[%clk 0:01:54.6]} 21.
Rf2 {[%clk 0:02:27.5]} 21... Bf6 {[%clk 0:01:50.4]} 22. Bf4 {[%clk 0:02:22.4]}
22... Rhe8 {[%clk 0:01:48.2]} 23. axb5 {[%clk 0:02:21.6]} 23... Qb7 {[%clk
0:01:42]} 24. Qe2 {[%clk 0:02:08.7]} 24... Bxc3 {[%clk 0:01:36]} 25. Rc1 {[%clk
0:01:55.2]} 25... Bd4 {[%clk 0:01:13.8]} 26. Bxd6 {[%clk 0:01:42.2]} 26... Bxf2+
{[%clk 0:01:09.9]} 27. Kxf2 {[%clk 0:01:41.9]} 27... Rxd6 {[%clk 0:01:09.2]} 28.
Qxc4+ {[%clk 0:01:41.6]} 28... Kb8 {[%clk 0:01:07.9]} 29. Bxe4 {[%clk
0:01:39.8]} 29... Rc8 {[%clk 0:01:02.4]} 30. Qxc8+ {[%clk 0:01:37.5]} 30... Qxc8
{[%clk 0:01:02.6]} 31. Rxc8+ {[%clk 0:01:38.1]} 31... Kxc8 {[%clk 0:01:03.5]}
32. Ke3 {[%clk 0:01:37.5]} 32... Kc7 {[%clk 0:01:03.6]} 33. Kd4 {[%clk
0:01:36.8]} 33... Kb6 {[%clk 0:01:03.9]} 34. Kc4 {[%clk 0:01:30.9]} 34... f6
{[%clk 0:00:57]} 35. g4 {[%clk 0:01:30.3]} 35... Rd8 {[%clk 0:00:54.7]} 36. Bd3
{[%clk 0:01:18.6]} 36... Rc8+ {[%clk 0:00:52.3]} 37. Kd4 {[%clk 0:01:17.7]}
37... Kc7 {[%clk 0:00:52.5]} 38. h4 {[%clk 0:00:55.3]} 38... Kd6 {[%clk
0:00:48.8]} 39. g5 {[%clk 0:00:54.6]} 39... h6 {[%clk 0:00:47.3]} 40. gxf6
{[%clk 0:00:51.7]} 40... gxf6 {[%clk 0:00:46.9]} 41. h5 {[%clk 0:00:51.7]} 41...
Rg8 {[%clk 0:00:41.4]} 42. Be2 {[%clk 0:00:51.3]} 42... Rg5 {[%clk 0:00:38.2]}
43. Ke4 {[%clk 0:00:50.6]} 43... Rg2 {[%clk 0:00:37.2]} 44. Kf3 {[%clk
0:00:50.4]} 44... Rh2 {[%clk 0:00:35.3]} 45. Ke3 {[%clk 0:00:43.8]} 45... Rh4
{[%clk 0:00:34.9]} 46. b6 {[%clk 0:00:39.4]} 46... axb6 {[%clk 0:00:34.1]} 47.
b5 {[%clk 0:00:39.7]} 47... Kxd5 {[%clk 0:00:34.1]} 48. Kf2 {[%clk 0:00:38.6]}
48... Ke5 {[%clk 0:00:34]} 49. Kg3 {[%clk 0:00:38.6]} 49... Rb4 {[%clk
0:00:33.8]} 0-1

[Event "*** Titled Tuesday Blitz"]
[Site "Chess.com"]
[Date "2020.11.03"]
[Round "4"]
[White "A-S-00"]
[Black "yourstrulyme"]
[Result "1-0"]
[WhiteElo "2314"]
[BlackElo "2442"]
[TimeControl "180+1"]
[EndTime "10:41:33 PST"]
[Termination "A-S-00 won by checkmate"]

1. d4 {[%clk 0:03:00.9]} 1... Nf6 {[%clk 0:02:59]} 2. Nf3 {[%clk 0:03:00.7]}
2... e6 {[%clk 0:02:58]} 3. c4 {[%clk 0:03:00.9]} 3... d5 {[%clk 0:02:57.9]} 4.
g3 {[%clk 0:03:01.1]} 4... Be7 {[%clk 0:02:57.1]} 5. Bg2 {[%clk 0:03:01.3]} 5...
O-O {[%clk 0:02:57.7]} 6. O-O {[%clk 0:03:01.3]} 6... dxc4 {[%clk 0:02:58.3]} 7.
Qc2 {[%clk 0:03:01.7]} 7... a6 {[%clk 0:02:58.1]} 8. a4 {[%clk 0:03:01.8]} 8...
Bd7 {[%clk 0:02:54.7]} 9. Qxc4 {[%clk 0:03:01.9]} 9... Bc6 {[%clk 0:02:54.7]}
10. Rd1 {[%clk 0:02:54.1]} 10... a5 {[%clk 0:02:52.4]} 11. Qc2 {[%clk
0:02:49.6]} 11... Na6 {[%clk 0:02:49.1]} 12. Nc3 {[%clk 0:02:48.1]} 12... Nb4
{[%clk 0:02:49.1]} 13. Qb1 {[%clk 0:02:48.2]} 13... Qb8 {[%clk 0:02:25.2]} 14.
e4 {[%clk 0:02:34.1]} 14... b6 {[%clk 0:02:24.7]} 15. Bf4 {[%clk 0:02:32.6]}
15... Qb7 {[%clk 0:02:23.3]} 16. Ne5 {[%clk 0:02:31.3]} 16... Rfd8 {[%clk
0:02:18.9]} 17. Nxc6 {[%clk 0:02:28.8]} 17... Qxc6 {[%clk 0:01:33]} 18. d5
{[%clk 0:02:09.2]} 18... Qc4 {[%clk 0:01:31.9]} 19. Bf1 {[%clk 0:01:59.7]} 19...
Qc5 {[%clk 0:01:21.3]} 20. Be3 {[%clk 0:01:56.6]} 20... Qd6 {[%clk 0:01:19.6]}
21. Bf4 {[%clk 0:01:28.4]} 21... Qd7 {[%clk 0:00:44.6]} 22. Bh3 {[%clk
0:01:18.7]} 22... Qc8 {[%clk 0:00:27.5]} 23. dxe6 {[%clk 0:01:13.7]} 23... fxe6
{[%clk 0:00:26]} 24. Rxd8+ {[%clk 0:01:08.3]} 24... Bxd8 {[%clk 0:00:25.6]} 25.
Qf1 {[%clk 0:01:04.9]} 25... Kf7 {[%clk 0:00:18.4]} 26. Qc4 {[%clk 0:01:03.3]}
26... h6 {[%clk 0:00:15.7]} 27. Rd1 {[%clk 0:01:01.9]} 27... g5 {[%clk
0:00:15.3]} 28. Be5 {[%clk 0:00:55.1]} 28... g4 {[%clk 0:00:14.5]} 29. Bxf6
{[%clk 0:00:51.7]} 29... Bxf6 {[%clk 0:00:09.6]} 30. Bxg4 {[%clk 0:00:51.6]}
30... c6 {[%clk 0:00:05.3]} 31. Rd6 {[%clk 0:00:49.2]} 31... Kg7 {[%clk
0:00:03.1]} 32. Bxe6 {[%clk 0:00:46.9]} 32... Qf8 {[%clk 0:00:02.7]} 33. Rd7+
{[%clk 0:00:45.4]} 33... Kh8 {[%clk 0:00:01.5]} 34. Rf7 {[%clk 0:00:42]} 34...
Qd8 {[%clk 0:00:01.5]} 35. Bf5 {[%clk 0:00:41.3]} 35... Bxc3 {[%clk 0:00:01.4]}
36. Rh7# {[%clk 0:00:40]} 1-0

[Event "*** Titled Tuesday Blitz"]
[Site "Chess.com"]
[Date "2020.11.03"]
[Round "4"]
[White "vugarrasulov"]
[Black "Flopezin"]
[Result "1-0"]
[WhiteElo "2847"]
[BlackElo "2356"]
[TimeControl "180+1"]
[EndTime "10:41:36 PST"]
[Termination "vugarrasulov won on time"]

1. b4 {[%clk 0:03:00.9]} 1... e5 {[%clk 0:02:58.5]} 2. Bb2 {[%clk 0:03:01.1]}
2... Bxb4 {[%clk 0:02:58.7]} 3. Bxe5 {[%clk 0:03:01.3]} 3... Nf6 {[%clk
0:02:59.3]} 4. Nf3 {[%clk 0:03:01.4]} 4... d5 {[%clk 0:02:59.5]} 5. e3 {[%clk
0:03:00.9]} 5... Bd6 {[%clk 0:02:59.3]} 6. Bb2 {[%clk 0:03:00.7]} 6... O-O
{[%clk 0:02:58.3]} 7. d4 {[%clk 0:02:59.4]} 7... Bf5 {[%clk 0:02:57.6]} 8. Bd3
{[%clk 0:02:59.4]} 8... Be4 {[%clk 0:02:48.6]} 9. O-O {[%clk 0:02:58.7]} 9...
Nbd7 {[%clk 0:02:46.9]} 10. c4 {[%clk 0:02:58.1]} 10... c6 {[%clk 0:02:43.3]}
11. Nc3 {[%clk 0:02:56.6]} 11... Bxd3 {[%clk 0:02:30.1]} 12. Qxd3 {[%clk
0:02:57.5]} 12... dxc4 {[%clk 0:02:31]} 13. Qxc4 {[%clk 0:02:58]} 13... Qe7
{[%clk 0:02:29.8]} 14. Qb3 {[%clk 0:02:57.9]} 14... b6 {[%clk 0:02:26.7]} 15.
Rfe1 {[%clk 0:02:57.4]} 15... Ne4 {[%clk 0:02:24.4]} 16. Nxe4 {[%clk 0:02:57.4]}
16... Qxe4 {[%clk 0:02:25.3]} 17. a4 {[%clk 0:02:57.5]} 17... c5 {[%clk
0:02:12.3]} 18. Rac1 {[%clk 0:02:56.6]} 18... Rac8 {[%clk 0:02:10]} 19. a5
{[%clk 0:02:56.6]} 19... Be7 {[%clk 0:01:58.6]} 20. axb6 {[%clk 0:02:55.7]}
20... axb6 {[%clk 0:01:54.3]} 21. dxc5 {[%clk 0:02:56.1]} 21... Nxc5 {[%clk
0:01:51.8]} 22. Qc4 {[%clk 0:02:53.5]} 22... Qxc4 {[%clk 0:01:44.7]} 23. Rxc4
{[%clk 0:02:54.4]} 23... Nd3 {[%clk 0:01:45.3]} 24. Re4 {[%clk 0:02:50.4]} 24...
Nxe1 {[%clk 0:01:41.5]} 25. Nxe1 {[%clk 0:02:51]} 25... Rfe8 {[%clk 0:01:34.8]}
26. Kf1 {[%clk 0:02:49.8]} 26... Bf6 {[%clk 0:01:23.5]} 27. Rb4 {[%clk
0:02:49.8]} 27... Bxb2 {[%clk 0:01:22.5]} 28. Rxb2 {[%clk 0:02:50.7]} 28... Rc6
{[%clk 0:01:21.4]} 29. Ke2 {[%clk 0:02:51.1]} 29... Rb8 {[%clk 0:01:20.1]} 30.
Nd3 {[%clk 0:02:49]} 30... b5 {[%clk 0:01:20.2]} 31. e4 {[%clk 0:02:49.2]} 31...
f6 {[%clk 0:01:20]} 32. Ke3 {[%clk 0:02:49.2]} 32... Kf7 {[%clk 0:01:18.2]} 33.
Nb4 {[%clk 0:02:49]} 33... Rc3+ {[%clk 0:01:17.3]} 34. Kd2 {[%clk 0:02:47.8]}
34... Rc4 {[%clk 0:01:14.7]} 35. f3 {[%clk 0:02:48.4]} 35... Rd8+ {[%clk
0:01:10.7]} 36. Ke3 {[%clk 0:02:47.6]} 36... Rc3+ {[%clk 0:00:57.5]} 37. Ke2
{[%clk 0:02:48.1]} 37... Rdc8 {[%clk 0:00:55.6]} 38. Kd2 {[%clk 0:02:43.3]}
38... Rc1 {[%clk 0:00:54.3]} 39. Nd5 {[%clk 0:02:38]} 39... Rg1 {[%clk
0:00:53.8]} 40. Ke3 {[%clk 0:02:38.1]} 40... Rcc1 {[%clk 0:00:50.6]} 41. g4
{[%clk 0:02:35.2]} 41... Rce1+ {[%clk 0:00:48.5]} 42. Kd4 {[%clk 0:02:32.3]}
42... Ref1 {[%clk 0:00:46.4]} 43. f4 {[%clk 0:02:30.7]} 43... Rxg4 {[%clk
0:00:43.2]} 44. Rxb5 {[%clk 0:02:30.6]} 44... Rd1+ {[%clk 0:00:41.9]} 45. Kc5
{[%clk 0:02:28.5]} 45... Rg2 {[%clk 0:00:40.3]} 46. Rb7+ {[%clk 0:02:27.7]}
46... Kf8 {[%clk 0:00:40.2]} 47. Kd6 {[%clk 0:02:25.5]} 47... Re2 {[%clk
0:00:31.6]} 48. Rb8+ {[%clk 0:02:19.9]} 48... Kf7 {[%clk 0:00:31.8]} 49. Rb7+
{[%clk 0:02:20.7]} 49... Kf8 {[%clk 0:00:31.2]} 50. Rb4 {[%clk 0:02:16.3]} 50...
h5 {[%clk 0:00:23.6]} 51. e5 {[%clk 0:02:10.3]} 51... fxe5 {[%clk 0:00:22.9]}
52. fxe5 {[%clk 0:02:11.2]} 52... Red2 {[%clk 0:00:22.8]} 53. Rb8+ {[%clk
0:02:11.2]} 53... Kf7 {[%clk 0:00:23]} 54. e6+ {[%clk 0:02:12.1]} 54... Kg6
{[%clk 0:00:23.4]} 55. Rb5 {[%clk 0:02:12.2]} 55... Rxh2 {[%clk 0:00:18.1]} 56.
Ke7 {[%clk 0:02:08]} 56... Rxd5 {[%clk 0:00:11]} 57. Rxd5 {[%clk 0:02:07.8]}
57... Re2 {[%clk 0:00:11.7]} 58. Rd1 {[%clk 0:02:06.7]} 58... h4 {[%clk
0:00:11.9]} 59. Rg1+ {[%clk 0:02:07]} 59... Kh6 {[%clk 0:00:11.3]} 60. Kf7
{[%clk 0:02:04.1]} 60... g5 {[%clk 0:00:11.9]} 61. e7 {[%clk 0:02:02.1]} 61...
Kh5 {[%clk 0:00:09.1]} 62. Kf6 {[%clk 0:01:55.1]} 62... g4 {[%clk 0:00:08.7]}
63. Rc1 {[%clk 0:01:53.5]} 63... h3 {[%clk 0:00:07.4]} 64. Rc5+ {[%clk
0:01:53.2]} 64... Kh4 {[%clk 0:00:07.4]} 65. Re5 {[%clk 0:01:53.4]} 65... Rf2+
{[%clk 0:00:04.2]} 66. Kg6 {[%clk 0:01:53.7]} 66... h2 {[%clk 0:00:03]} 67. e8=Q
{[%clk 0:01:53.7]} 67... h1=Q {[%clk 0:00:03.9]} 68. Rh5+ {[%clk 0:01:53.8]}
68... Kg3 {[%clk 0:00:02.8]} 69. Rxh1 {[%clk 0:01:54.7]} 1-0

[Event "*** Titled Tuesday Blitz"]
[Site "Chess.com"]
[Date "2020.11.03"]
[Round "4"]
[White "Fischerev7"]
[Black "Eloist"]
[Result "0-1"]
[WhiteElo "2409"]
[BlackElo "2275"]
[TimeControl "180+1"]
[EndTime "10:41:36 PST"]
[Termination "Eloist won on time"]

1. e4 {[%clk 0:02:51.1]} 1... e6 {[%clk 0:02:59.1]} 2. d4 {[%clk 0:02:37.2]}
2... d5 {[%clk 0:02:57.9]} 3. Nc3 {[%clk 0:02:37.2]} 3... Nf6 {[%clk 0:02:57.8]}
4. Bg5 {[%clk 0:02:36.7]} 4... dxe4 {[%clk 0:02:56.6]} 5. Nxe4 {[%clk
0:02:35.6]} 5... Be7 {[%clk 0:02:56.5]} 6. Bxf6 {[%clk 0:02:24.8]} 6... gxf6
{[%clk 0:02:56.4]} 7. g3 {[%clk 0:02:18.7]} 7... f5 {[%clk 0:02:55.1]} 8. Nc3
{[%clk 0:02:17.6]} 8... Bf6 {[%clk 0:02:53]} 9. Nge2 {[%clk 0:02:13.7]} 9... Nc6
{[%clk 0:02:48.4]} 10. Qd3 {[%clk 0:01:44.5]} 10... Nxd4 {[%clk 0:02:35.6]} 11.
O-O-O {[%clk 0:01:42.9]} 11... c5 {[%clk 0:02:20.6]} 12. Bg2 {[%clk 0:01:40.3]}
12... O-O {[%clk 0:02:19]} 13. Kb1 {[%clk 0:01:37.1]} 13... Qb6 {[%clk
0:02:14.2]} 14. Nf4 {[%clk 0:01:24.9]} 14... Bd7 {[%clk 0:02:03.5]} 15. Nh5
{[%clk 0:01:18.8]} 15... Bh8 {[%clk 0:01:50.8]} 16. Qe3 {[%clk 0:01:08.6]} 16...
Rfd8 {[%clk 0:01:17.8]} 17. Qg5+ {[%clk 0:00:58.7]} 17... Kf8 {[%clk 0:01:16.9]}
18. Qh6+ {[%clk 0:00:37.4]} 18... Ke7 {[%clk 0:00:59.3]} 19. Qxh7 {[%clk
0:00:36.2]} 19... Ne2 {[%clk 0:00:46.9]} 20. Rd3 {[%clk 0:00:06.3]} 20... Nxc3+
{[%clk 0:00:45.5]} 21. Kc1 {[%clk 0:00:06.7]} 21... Nxa2+ {[%clk 0:00:41.9]} 22.
Kd2 {[%clk 0:00:06.7]} 22... Qb4+ {[%clk 0:00:33.7]} 23. Ke2 {[%clk 0:00:05.9]}
23... Bb5 {[%clk 0:00:33]} 24. Re1 {[%clk 0:00:03.1]} 24... Bxd3+ {[%clk
0:00:28.9]} 25. cxd3 {[%clk 0:00:04]} 25... Qxb2+ {[%clk 0:00:21]} 26. Kf1
{[%clk 0:00:04.4]} 26... Bc3 {[%clk 0:00:20.6]} 27. Rd1 {[%clk 0:00:02.6]} 27...
Rh8 {[%clk 0:00:19.9]} 0-1

[Event "*** Titled Tuesday Blitz"]
[Site "Chess.com"]
[Date "2020.11.03"]
[Round "4"]
[White "Akhayan"]
[Black "guillembaches"]
[Result "0-1"]
[WhiteElo "2266"]
[BlackElo "2390"]
[TimeControl "180+1"]
[EndTime "10:41:40 PST"]
[Termination "guillembaches won by resignation"]

1. d4 {[%clk 0:02:51.9]} 1... d5 {[%clk 0:02:58.9]} 2. Nf3 {[%clk 0:02:51.6]}
2... Nc6 {[%clk 0:02:58.5]} 3. g3 {[%clk 0:02:51.9]} 3... Bf5 {[%clk 0:02:58.6]}
4. Bg2 {[%clk 0:02:52.4]} 4... Nb4 {[%clk 0:02:58.9]} 5. Na3 {[%clk 0:02:51.2]}
5... e6 {[%clk 0:02:59.2]} 6. O-O {[%clk 0:02:51.4]} 6... Nf6 {[%clk 0:02:59.4]}
7. c3 {[%clk 0:02:51.7]} 7... Na6 {[%clk 0:02:59.6]} 8. Nc2 {[%clk 0:02:51.9]}
8... c6 {[%clk 0:02:57.5]} 9. Ne3 {[%clk 0:02:52.1]} 9... Be4 {[%clk 0:02:57.4]}
10. Ne5 {[%clk 0:02:47.2]} 10... Bxg2 {[%clk 0:02:54.9]} 11. Nxg2 {[%clk
0:02:47.4]} 11... Be7 {[%clk 0:02:54.5]} 12. Qd3 {[%clk 0:02:44.7]} 12... O-O
{[%clk 0:02:51.3]} 13. Bg5 {[%clk 0:02:44.7]} 13... h6 {[%clk 0:02:46.8]} 14.
Bxf6 {[%clk 0:02:44.4]} 14... Bxf6 {[%clk 0:02:47.7]} 15. e4 {[%clk 0:02:44.6]}
15... c5 {[%clk 0:02:44.1]} 16. exd5 {[%clk 0:02:37.6]} 16... cxd4 {[%clk
0:02:29]} 17. cxd4 {[%clk 0:02:28.1]} 17... Qxd5 {[%clk 0:02:16.6]} 18. Nf4
{[%clk 0:02:22.8]} 18... Qd6 {[%clk 0:02:08]} 19. Rfe1 {[%clk 0:02:00.7]} 19...
Rfd8 {[%clk 0:02:01.6]} 20. Qb3 {[%clk 0:01:38.6]} 20... Qb4 {[%clk 0:01:47.7]}
21. Qf3 {[%clk 0:01:18]} 21... Rxd4 {[%clk 0:01:24.5]} 22. Nxf7 {[%clk
0:01:08.4]} 22... Kxf7 {[%clk 0:01:12.2]} 23. Qh5+ {[%clk 0:01:06.5]} 23... Kg8
{[%clk 0:01:06.9]} 24. Nxe6 {[%clk 0:00:56.2]} 24... Re4 {[%clk 0:00:55.8]} 25.
Rxe4 {[%clk 0:00:42.4]} 25... Qxe4 {[%clk 0:00:56.7]} 26. Nf4 {[%clk 0:00:37.1]}
26... Rd8 {[%clk 0:00:44.6]} 27. Rc1 {[%clk 0:00:30.7]} 27... Kh7 {[%clk
0:00:38.1]} 28. Qg4 {[%clk 0:00:25]} 28... Nb4 {[%clk 0:00:28.2]} 29. h4 {[%clk
0:00:22.4]} 29... Nd3 {[%clk 0:00:22.7]} 30. Rd1 {[%clk 0:00:16.2]} 30... Nxf4
{[%clk 0:00:19.7]} 31. gxf4 {[%clk 0:00:15.6]} 31... Rxd1+ {[%clk 0:00:18.4]}
32. Qxd1 {[%clk 0:00:16]} 32... Qxf4 {[%clk 0:00:18.4]} 33. Qd3+ {[%clk
0:00:16.2]} 33... g6 {[%clk 0:00:18.4]} 34. h5 {[%clk 0:00:15.5]} 34... Qg5+
{[%clk 0:00:17.3]} 0-1

[Event "*** Titled Tuesday Blitz"]
[Site "Chess.com"]
[Date "2020.11.03"]
[Round "4"]
[White "annacramling"]
[Black "politeplayer"]
[Result "0-1"]
[WhiteElo "1965"]
[BlackElo "2246"]
[TimeControl "180+1"]
[EndTime "10:41:40 PST"]
[Termination "politeplayer won by resignation"]

1. Nf3 {[%clk 0:03:00.9]} 1... Nf6 {[%clk 0:02:58.8]} 2. b3 {[%clk 0:03:01]}
2... a5 {[%clk 0:02:57.6]} 3. a4 {[%clk 0:02:57.8]} 3... g6 {[%clk 0:02:54.6]}
4. Bb2 {[%clk 0:02:57.9]} 4... Bg7 {[%clk 0:02:55]} 5. d3 {[%clk 0:02:55.9]}
5... O-O {[%clk 0:02:54.4]} 6. e4 {[%clk 0:02:54.9]} 6... d6 {[%clk 0:02:54.2]}
7. Nbd2 {[%clk 0:02:52]} 7... Nc6 {[%clk 0:02:53]} 8. d4 {[%clk 0:02:49.2]} 8...
e5 {[%clk 0:02:48.3]} 9. dxe5 {[%clk 0:02:35.6]} 9... dxe5 {[%clk 0:02:44.5]}
10. Bb5 {[%clk 0:02:31.5]} 10... Nd4 {[%clk 0:02:33.9]} 11. Nxd4 {[%clk
0:02:10]} 11... exd4 {[%clk 0:02:32.2]} 12. O-O {[%clk 0:02:10]} 12... c6 {[%clk
0:02:22.2]} 13. Bd3 {[%clk 0:02:06.2]} 13... Qc7 {[%clk 0:02:18.6]} 14. Bxd4
{[%clk 0:02:01]} 14... Ng4 {[%clk 0:02:17.7]} 15. e5 {[%clk 0:01:43.5]} 15... c5
{[%clk 0:01:52.7]} 16. Bb2 {[%clk 0:01:34.2]} 16... Nxe5 {[%clk 0:01:44.6]} 17.
Bxe5 {[%clk 0:01:29.9]} 17... Bxe5 {[%clk 0:01:40.8]} 18. Nf3 {[%clk 0:00:59.2]}
18... Bxa1 {[%clk 0:01:39.2]} 19. Qxa1 {[%clk 0:01:00.1]} 19... Re8 {[%clk
0:01:37.6]} 20. Ng5 {[%clk 0:00:52]} 20... Bf5 {[%clk 0:01:26.4]} 21. Bxf5
{[%clk 0:00:47.9]} 21... gxf5 {[%clk 0:01:25.9]} 22. Qf6 {[%clk 0:00:38.6]}
22... Ra6 {[%clk 0:01:12.5]} 23. Qxf5 {[%clk 0:00:32.9]} 23... Rg6 {[%clk
0:01:12.8]} 24. h4 {[%clk 0:00:27.4]} 24... h6 {[%clk 0:01:00.1]} 25. Ne4 {[%clk
0:00:26.3]} 25... Qc6 {[%clk 0:00:55.5]} 26. Ng3 {[%clk 0:00:25.4]} 26... b6
{[%clk 0:00:50.4]} 27. h5 {[%clk 0:00:25.4]} 27... Rg5 {[%clk 0:00:47.3]} 28.
Qf4 {[%clk 0:00:25.2]} 28... Qe6 {[%clk 0:00:41.7]} 29. Rd1 {[%clk 0:00:14.4]}
29... Qe5 {[%clk 0:00:37.5]} 30. Qf3 {[%clk 0:00:10.7]} 30... Qe7 {[%clk
0:00:29.4]} 31. Nf5 {[%clk 0:00:08.2]} 31... Qf6 {[%clk 0:00:27.2]} 32. Qd5
{[%clk 0:00:05]} 32... Rxf5 {[%clk 0:00:25]} 33. Qd6 {[%clk 0:00:04.4]} 33...
Re1+ {[%clk 0:00:23.8]} 0-1